[Event "ESP-ch U1700 2024"]
[Site "Albacete"]
[Date "2024.08.30"]
[Round "6.6"]
[White "Vega Garcia, Alejandro"]
[Black "Carrilero Otalora, Vanesa"]
[Result "1/2-1/2"]
[ECO "C54"]
[WhiteElo "1636"]
[BlackElo "1692"]
[Annotator "NA RC"]
[PlyCount "134"]
[EventDate "2024.08.27"]
[EventType "swiss"]
[EventCountry "ESP"]
[SourceTitle "playchess.com"]
[Source "ChessBase"]
[SourceQuality "1"]
[TimeControl "5400+30"]

1. e4 {[%emt 0:00:07]} e5 {[%emt 0:00:06]} 2. Nf3 {[%emt 0:00:10]} Nc6 {[%emt 0:00:27]} 3. Bc4 {[%emt 0:00:10]} Bc5 {[%emt 0:00:49]} 4. c3 {[%emt 0:00:27]} Nf6 {[%emt 0:00:43]} 5. d3 {[%emt 0:00:21]} d6 {[%emt 0:01:36]} 6. h3 {[%emt 0:00:27]} h6 {[%emt 0:00:55]} 7. a4 {[%emt 0:02:00]} a5 {[%emt 0:01:54]} 8. Be3 {[%emt 0:04:01]} Bxe3 {[%emt 0:00:54]} 9. fxe3 {[%emt 0:00:14]} O-O {[%emt 0:04:12]} 10. O-O {[%emt 0:02:32]} Qe7 {[%emt 0:10:12]} 11. Nh4 {[%emt 0:04:58]} Be6 {[%emt 0:20:37]} 12. Bxe6 {[%emt 0:04:20]} Qxe6 {[%emt 0:00:30]} 13. Nf5 {[%emt 0:02:59]} Ne7 {[%emt 0:02:42]} 14. Nd2 {[%emt 0:12:14]} Ng6 {[%emt 0:03:48]} 15. Qf3 {[%emt 0:05:06]} Kh7 {[%emt 0:08:35]} 16. Rf2 {[%emt 0:04:08]} c6 {[%emt 0:03:41]} 17. Raf1 {[%emt 0:08:03]} d5 {[%emt 0:10:13]} 18. Nxg7 {[%emt 0:02:30]} Kxg7 {[%emt 0:02:25]} 19. Qxf6+ {[%emt 0:00:21]} Qxf6 {[%emt 0:00:08]} 20. Rxf6 {[%emt 0:00:08]} Nf4 {[%emt 0:01:22]} 21. Rd6 {[%emt 0:03:47]} Nxd3 {[%emt 0:02:35]} 22. exd5 {[%emt 0:00:56]} cxd5 {[%emt 0:05:12]} 23. Rxd5 {[%emt 0:00:59]} Nxb2 {[%emt 0:01:42]} 24. Rxe5 {[%emt 0:03:31]} Nxa4 {[%emt 0:00:56]} 25. Ne4 {[%emt 0:02:00]} Rfe8 {[%emt 0:01:50]} 26. Rxe8 {[%emt 0:00:37]} Rxe8 {[%emt 0:00:06]} 27. Nd6 {[%emt 0:00:07]} Re7 {[%emt 0:02:39]} 28. Nf5+ {[%emt 0:00:17]} Kf8 {[%emt 0:00:18]} 29. Nxe7 {[%emt 0:00:17]} Kxe7 {[%emt 0:00:06]} 30. Ra1 {[%emt 0:00:51]} Nxc3 {[%emt 0:02:24]} 31. Rxa5 {[%emt 0:00:14]} b5 {[%emt 0:00:14]} 32. Ra7+ {[%emt 0:00:40]} Kf6 {[%emt 0:01:02]} 33. Rb7 {[%emt 0:00:25]} Nd1 {[%emt 0:01:47]} 34. Rxb5 {[%emt 0:00:34]} Nxe3 {[%emt 0:00:06]} 35. Kf2 {[%emt 0:01:10]} Nf5 {[%emt 0:01:58]} 36. g4 {[%emt 0:01:05]} Ng7 {[%emt 0:00:56]} 37. Kg3 {[%emt 0:01:40]} Kg6 {[%emt 0:02:41]} 38. Rb7 {[%emt 0:10:07]} h5 {[%emt 0:05:08]} 39. Rb6+ {[%emt 0:04:26]} Ne6 {[%emt 0:00:18]} 40. Kh4 {[%emt 0:00:39]} hxg4 {[%emt 0:00:19]} 41. hxg4 {[%emt 0:00:23]} Kh6 {[%emt 0:01:15]} 42. g5+ {[%emt 0:00:53]} Kg6 {[%emt 0:00:47]} 43. Kg4 {[%emt 0:00:17]} Kg7 {[%emt 0:00:20]} 44. Ra6 {[%emt 0:02:59]} Kg6 {[%emt 0:00:48]} 45. Rd6 {[%emt 0:00:11]} Kh7 {[%emt 0:01:01]} 46. Kf5 {[%emt 0:01:44]} Kg7 {[%emt 0:00:33]} 47. Rd7 {[%emt 0:04:26]} Nf8 {[%emt 0:00:27]} 48. Ra7 {[%emt 0:01:12]} Ng6 {[%emt 0:00:29]} 49. Ra6 {[%emt 0:01:30]} Nf8 {[%emt 0:00:30]} 50. Rf6 {[%emt 0:00:03]} Nd7 {[%emt 0:00:32]} 51. Ra6 {[%emt 0:01:28]} Nf8 {[%emt 0:00:15]} 52. Ra1 {[%emt 0:01:09]} Ng6 {[%emt 0:00:34]} 53. Rf1 {[%emt 0:00:45]} Ne7+ {[%emt 0:00:32]} 54. Ke5 {[%emt 0:00:45]} Ng6+ {[%emt 0:00:26]} 55. Kd6 {[%emt 0:00:36]} Nf8 {[%emt 0:00:18]} 56. Ke7 {[%emt 0:00:27]} Ng6+ {[%emt 0:00:13]} 57. Ke8 {[%emt 0:00:15]} Nh8 {[%emt 0:00:50]} 58. Rf6 {[%emt 0:00:24]} Kg8 {[%emt 0:00:45]} 59. Rf2 {[%emt 0:02:22]} Kg7 {[%emt 0:00:32]} 60. Rh2 {[%emt 0:01:07]} Ng6 {[%emt 0:00:27]} 61. Rf2 {[%emt 0:01:04]} Nh8 {[%emt 0:00:11]} 62. Rf6 {[%emt 0:00:08]} Kg8 {[%emt 0:00:56]} 63. Rh6 {[%emt 0:00:16]} Ng6 64. Kd8 {[%emt 0:01:47]} Kg7 {[%emt 0:00:59]} 65. Kd7 {[%emt 0:00:34]} f6 {[%emt 0:00:37]} 66. gxf6+ {[%emt 0:02:05]} Kxh6 {[%emt 0:00:13]} 67. Ke8 {[%emt 0:00:16]} Kg5 {[%emt 0:00:31]} 1/2-1/2

[Event "ESP-ch U1700 2024"]
[Site "Albacete"]
[Date "2024.08.30"]
[Round "6.7"]
[White "Varela Cano, Hugo"]
[Black "Munoz Xu, Lain"]
[Result "1-0"]
[ECO "B12"]
[WhiteElo "1691"]
[BlackElo "1646"]
[Annotator "NA RC"]
[PlyCount "95"]
[EventDate "2024.08.27"]
[EventType "swiss"]
[EventCountry "ESP"]
[SourceTitle "playchess.com"]
[Source "ChessBase"]
[SourceQuality "1"]
[TimeControl "5400+30"]

1. e4 {[%emt 0:00:13]} c6 {[%emt 0:00:19]} 2. d4 {[%emt 0:00:14]} d5 {[%emt 0:00:31]} 3. e5 {[%emt 0:00:14]} c5 {[%emt 0:00:17]} 4. dxc5 {[%emt 0:00:43]} Nc6 {[%emt 0:00:35]} 5. Nf3 {[%emt 0:15:03]} Bg4 {[%emt 0:00:23]} 6. Be2 {[%emt 0:02:32]} e6 {[%emt 0:00:20]} 7. a3 {[%emt 0:08:25]} Bxc5 {[%emt 0:00:29]} 8. Nbd2 {[%emt 0:05:44]} Nge7 {[%emt 0:01:00]} 9. b4 {[%emt 0:00:52]} Bb6 {[%emt 0:02:09]} 10. Bb2 {[%emt 0:01:19]} a6 {[%emt 0:01:56]} 11. O-O {[%emt 0:01:30]} O-O {[%emt 0:00:28]} 12. h3 {[%emt 0:04:14]} Bh5 {[%emt 0:01:00]} 13. c4 {[%emt 0:09:43]} dxc4 {[%emt 0:05:14]} 14. Nxc4 {[%emt 0:01:02]} Bc7 {[%emt 0:01:30]} 15. Qc2 {[%emt 0:12:35]} b5 {[%emt 0:02:35]} 16. Rfd1 {[%emt 0:01:25]} Nd5 {[%emt 0:04:49]} 17. Ne3 {[%emt 0:06:11]} Nce7 {[%emt 0:02:49]} 18. Ng5 {[%emt 0:05:36]} Bg6 {[%emt 0:00:54]} 19. Bd3 {[%emt 0:00:17]} Rc8 {[%emt 0:03:55]} 20. Qd2 {[%emt 0:02:19]} Nxe3 {[%emt 0:02:11]} 21. Qxe3 {[%emt 0:02:03]} Bxd3 {[%emt 0:01:33]} 22. Rxd3 {[%emt 0:00:34]} Nd5 {[%emt 0:00:32]} 23. Qd2 {[%emt 0:00:15]} Qe7 {[%emt 0:00:38]} 24. Ne4 {[%emt 0:00:47]} Rfd8 {[%emt 0:01:09]} 25. Nc5 {[%emt 0:02:50]} Bb6 {[%emt 0:02:01]} 26. Bd4 {[%emt 0:01:13]} a5 {[%emt 0:02:19]} 27. Ne4 {[%emt 0:02:03]} Bxd4 {[%emt 0:02:31]} 28. Rxd4 {[%emt 0:00:10]} axb4 {[%emt 0:00:48]} 29. axb4 {[%emt 0:00:23]} Ra8 {[%emt 0:01:56]} 30. Rd1 {[%emt 0:03:43]} h6 {[%emt 0:02:15]} 31. Nc3 {[%emt 0:01:19]} Rab8 {[%emt 0:01:43]} 32. Nxd5 {[%emt 0:00:29]} Rxd5 {[%emt 0:00:43]} 33. Qf4 {[%emt 0:02:32]} Rxd4 {[%emt 0:00:27]} 34. Qxd4 {[%emt 0:00:09]} Rc8 {[%emt 0:00:49]} 35. Qd6 {[%emt 0:01:31]} Qxd6 {[%emt 0:04:18]} 36. exd6 {[%emt 0:00:06]} Rd8 {[%emt 0:00:13]} 37. f4 {[%emt 0:00:27]} Kf8 {[%emt 0:00:20]} 38. Kf2 {[%emt 0:00:40]} Ke8 {[%emt 0:00:07]} 39. Ke3 {[%emt 0:00:11]} f6 {[%emt 0:01:01]} 40. Ke4 {[%emt 0:01:29]} Kd7 {[%emt 0:02:04]} 41. f5 {[%emt 0:00:50]} e5 {[%emt 0:01:49]} 42. Kd5 {[%emt 0:00:31]} Rc8 {[%emt 0:00:10]} 43. Ra1 {[%emt 0:00:22]} Ke8 {[%emt 0:05:09]} 44. Ke6 {[%emt 0:02:40]} Rb8 {[%emt 0:00:37]} 45. Ra7 {[%emt 0:01:29]} h5 {[%emt 0:00:56]} 46. Rxg7 {[%emt 0:01:12]} Kf8 {[%emt 0:00:45]} 47. Rf7+ {[%emt 0:01:52]} Ke8 {[%emt 0:00:28]} 48. Rh7 {[%emt 0:00:48]} 1-0

[Event "ESP-ch U1700 2024"]
[Site "Albacete"]
[Date "2024.08.30"]
[Round "6.8"]
[White "Fernandez Gonzalez, Mateo"]
[Black "Caballero Sanchez, Francisco"]
[Result "0-1"]
[ECO "B52"]
[WhiteElo "1625"]
[BlackElo "1682"]
[Annotator "NA RC"]
[PlyCount "103"]
[EventDate "2024.08.27"]
[EventType "swiss"]
[EventCountry "ESP"]
[SourceTitle "playchess.com"]
[Source "ChessBase"]
[SourceQuality "1"]
[TimeControl "5400+30"]

1. e4 {[%emt 0:00:04]} c5 {[%emt 0:00:03]} 2. Nf3 {[%emt 0:00:08]} d6 {[%emt 0:00:01]} 3. Bb5+ {[%emt 0:00:09]} Bd7 {[%emt 0:00:03]} 4. Bxd7+ {[%emt 0:00:49]} Nxd7 {[%emt 0:00:04]} 5. O-O {[%emt 0:02:35]} Ngf6 {[%emt 0:01:14]} 6. Re1 {[%emt 0:00:44]} e6 {[%emt 0:00:20]} 7. Nc3 {[%emt 0:01:49]} Be7 {[%emt 0:00:28]} 8. d4 {[%emt 0:01:48]} cxd4 {[%emt 0:00:23]} 9. Nxd4 {[%emt 0:00:51]} O-O {[%emt 0:01:44]} 10. Qf3 {[%emt 0:18:52]} Qb6 {[%emt 0:05:48]} 11. Nb3 {[%emt 0:01:24]} Ne5 {[%emt 0:02:31]} 12. Qg3 {[%emt 0:04:39]} Rfd8 {[%emt 0:01:04]} 13. Be3 {[%emt 0:10:45]} Qc6 {[%emt 0:03:21]} 14. Nd4 {[%emt 0:01:05]} Qe8 15. Ndb5 {[%emt 0:11:44]} Qc6 {[%emt 0:09:36]} 16. Nd4 {[%emt 0:00:31]} Qd7 {[%emt 0:01:06]} 17. Rad1 {[%emt 0:03:57]} Qc7 {[%emt 0:01:48]} 18. Ndb5 {[%emt 0:02:31]} Qa5 {[%emt 0:00:40]} 19. Bf4 {[%emt 0:04:59]} Nh5 {[%emt 0:02:03]} 20. Qe3 {[%emt 0:01:30]} Nc4 {[%emt 0:06:32]} 21. Qc1 {[%emt 0:03:36]} Nxf4 {[%emt 0:03:17]} 22. Qxf4 {[%emt 0:00:06]} Nxb2 {[%emt 0:00:26]} 23. Rb1 {[%emt 0:03:21]} Bf6 {[%emt 0:03:43]} 24. Rxb2 {[%emt 0:03:40]} Bxc3 {[%emt 0:00:30]} 25. Nxc3 {[%emt 0:00:01]} Qxc3 {[%emt 0:00:16]} 26. Reb1 {[%emt 0:00:44]} b6 {[%emt 0:00:14]} 27. h4 {[%emt 0:03:05]} Rac8 {[%emt 0:01:27]} 28. h5 {[%emt 0:01:35]} h6 {[%emt 0:01:16]} 29. Qh4 {[%emt 0:01:36]} Rd7 {[%emt 0:01:08]} 30. g4 {[%emt 0:01:03]} Qd2 {[%emt 0:01:08]} 31. Qg3 {[%emt 0:00:25]} Rxc2 {[%emt 0:00:46]} 32. Rxc2 {[%emt 0:00:42]} Qxc2 {[%emt 0:00:01]} 33. Qb3 {[%emt 0:00:02]} Qxb3 {[%emt 0:00:29]} 34. Rxb3 {[%emt 0:00:12]} Rc7 {[%emt 0:00:11]} 35. Rd3 {[%emt 0:00:16]} Rc6 {[%emt 0:00:15]} 36. Ra3 {[%emt 0:00:16]} a5 {[%emt 0:00:04]} 37. Rd3 {[%emt 0:00:13]} Kf8 {[%emt 0:00:12]} 38. Kg2 {[%emt 0:00:18]} Ke7 {[%emt 0:00:10]} 39. Kg3 {[%emt 0:00:08]} b5 {[%emt 0:01:33]} 40. Kf4 {[%emt 0:00:34]} f6 {[%emt 0:00:11]} 41. Ke3 {[%emt 0:00:10]} b4 {[%emt 0:01:10]} 42. Kd2 {[%emt 0:00:16]} Rc4 {[%emt 0:01:04]} 43. f3 {[%emt 0:00:08]} e5 {[%emt 0:01:50]} 44. Rd5 {[%emt 0:00:30]} Rc5 {[%emt 0:00:09]} 45. Rd3 {[%emt 0:00:12]} Kd7 {[%emt 0:00:28]} 46. a3 {[%emt 0:00:34]} Kc6 {[%emt 0:01:41]} 47. axb4 {[%emt 0:01:16]} axb4 {[%emt 0:00:02]} 48. Kd1 {[%emt 0:00:45]} Rc4 {[%emt 0:00:45]} 49. Kd2 {[%emt 0:00:18]} Rd4 {[%emt 0:00:35]} 50. Rxd4 {[%emt 0:00:28]} exd4 {[%emt 0:00:01]} 51. Kd3 {[%emt 0:00:02]} b3 {[%emt 0:01:20]} 52. Kxd4 0-1

[Event "ESP-ch U1700 2024"]
[Site "Albacete"]
[Date "2024.08.30"]
[Round "6.9"]
[White "Acebal Fernandez, Jose Maria"]
[Black "Vallina Menendez, Marcos"]
[Result "1/2-1/2"]
[ECO "D10"]
[WhiteElo "1624"]
[BlackElo "1680"]
[Annotator "NA RC"]
[PlyCount "93"]
[EventDate "2024.08.27"]
[EventType "swiss"]
[EventCountry "ESP"]
[SourceTitle "playchess.com"]
[Source "ChessBase"]
[SourceQuality "1"]
[TimeControl "5400+30"]

1. d4 {[%emt 0:00:04]} d5 {[%emt 0:00:08]} 2. c4 {[%emt 0:00:05]} c6 {[%emt 0:00:08]} 3. cxd5 {[%emt 0:00:50]} cxd5 {[%emt 0:00:11]} 4. Nc3 {[%emt 0:00:27]} Nf6 {[%emt 0:00:18]} 5. Bg5 {[%emt 0:00:52]} e6 {[%emt 0:01:44]} 6. e3 {[%emt 0:01:27]} Nbd7 {[%emt 0:01:32]} 7. Bd3 {[%emt 0:01:35]} Bd6 {[%emt 0:02:19]} 8. Nf3 {[%emt 0:01:47]} h6 {[%emt 0:01:01]} 9. Bh4 {[%emt 0:01:18]} O-O {[%emt 0:03:09]} 10. O-O {[%emt 0:01:30]} a6 {[%emt 0:02:13]} 11. Bg3 {[%emt 0:05:26]} Bxg3 {[%emt 0:02:41]} 12. hxg3 {[%emt 0:02:46]} b5 {[%emt 0:00:24]} 13. a3 {[%emt 0:01:51]} Bb7 {[%emt 0:00:36]} 14. Rc1 {[%emt 0:03:33]} Rc8 {[%emt 0:00:34]} 15. Qe2 {[%emt 0:01:50]} Ne4 {[%emt 0:05:40]} 16. Nd2 {[%emt 0:01:38]} Nxc3 {[%emt 0:06:22]} 17. Rxc3 {[%emt 0:01:24]} Rxc3 {[%emt 0:00:14]} 18. bxc3 {[%emt 0:00:06]} Qa5 {[%emt 0:01:03]} 19. Nb3 {[%emt 0:03:42]} Qxc3 {[%emt 0:12:42]} 20. Qc2 {[%emt 0:01:31]} Rc8 {[%emt 0:03:27]} 21. Rc1 {[%emt 0:00:28]} Qxc2 {[%emt 0:00:18]} 22. Rxc2 {[%emt 0:00:15]} Rxc2 {[%emt 0:00:19]} 23. Bxc2 {[%emt 0:00:07]} Kf8 {[%emt 0:03:29]} 24. Kf1 {[%emt 0:00:39]} Ke7 {[%emt 0:00:57]} 25. Ke2 {[%emt 0:00:33]} Kd6 {[%emt 0:00:30]} 26. Kd2 {[%emt 0:01:06]} f5 {[%emt 0:06:11]} 27. f4 {[%emt 0:03:51]} Nf6 {[%emt 0:01:42]} 28. Nc5 {[%emt 0:00:50]} Bc8 {[%emt 0:00:45]} 29. Bd1 {[%emt 0:00:57]} Kc6 {[%emt 0:10:16]} 30. Kc3 {[%emt 0:02:08]} a5 {[%emt 0:02:33]} 31. Bf3 {[%emt 0:03:00]} g5 {[%emt 0:05:03]} 32. fxg5 {[%emt 0:02:00]} hxg5 {[%emt 0:00:14]} 33. g4 {[%emt 0:00:32]} Nxg4 {[%emt 0:00:44]} 34. Bxg4 {[%emt 0:00:27]} fxg4 {[%emt 0:00:08]} 35. g3 {[%emt 0:00:13]} e5 {[%emt 0:00:32]} 36. Kb3 {[%emt 0:00:59]} Bf5 {[%emt 0:00:54]} 37. Kb2 {[%emt 0:00:53]} a4 {[%emt 0:02:20]} 38. Kc3 {[%emt 0:00:59]} Bc8 {[%emt 0:02:42]} 39. Nd3 {[%emt 0:01:37]} exd4+ {[%emt 0:02:47]} 40. exd4 {[%emt 0:00:17]} Kd6 {[%emt 0:01:07]} 41. Nc5 {[%emt 0:00:59]} Kc6 {[%emt 0:07:23]} 42. Kb4 {[%emt 0:01:30]} Kb6 43. Nd3 Bd7 44. Nc5 Bf5 45. Kc3 Ka5 46. Nb7+ Kb6 47. Nc5 1/2-1/2

[Event "ESP-ch U1700 2024"]
[Site "Albacete"]
[Date "2024.08.31"]
[Round "7.1"]
[White "Garcia-Munoz Arias, Diego"]
[Black "Saiz Alonso de Armino, Daniel"]
[Result "1/2-1/2"]
[ECO "D00"]
[WhiteElo "1696"]
[BlackElo "1689"]
[Annotator "NA RC COMBH"]
[PlyCount "68"]
[EventDate "2024.08.27"]
[EventType "swiss"]
[EventCountry "ESP"]
[SourceTitle "playchess.com"]
[Source "ChessBase"]
[SourceQuality "1"]
[TimeControl "5400+30"]

1. d4 d5 2. Bf4 e6 3. e3 Nf6 4. Nf3 c5 5. Nbd2 Bd6 6. Bb5+ Nc6 7. dxc5 Bxc5 8. O-O O-O 9. c4 Bd6 10. Bxc6 bxc6 11. cxd5 cxd5 12. Bxd6 Qxd6 13. Rb1 Ba6 14. Re1 Rfd8 15. b4 Bd3 16. Rb3 Bg6 17. a4 Rac8 18. Rb2 h6 19. b5 Rd7 20. Nd4 Rb7 21. Qa1 Nd7 22. Rc1 Rxc1+ 23. Qxc1 Rc7 24. Qa1 Ne5 25. a5 Bd3 26. b6 Qa3 27. Rb1 Qxa1 28. bxc7 Qc3 29. Rb8+ Kh7 30. c8=Q Qxd2 31. h3 Qe1+ 32. Kh2 Qxf2 33. Qh8+ Kg6 34. Rg8 Ng4+ 1/2-1/2

[Event "ESP-ch U1700 2024"]
[Site "Albacete"]
[Date "2024.08.31"]
[Round "7.2"]
[White "El Ammari Rovira, Yassin Jesus"]
[Black "Jimenez Fernandez, Alejandro"]
[Result "1/2-1/2"]
[ECO "D04"]
[WhiteElo "1582"]
[BlackElo "1956"]
[Annotator "NA RC"]
[PlyCount "108"]
[EventDate "2024.08.27"]
[EventType "swiss"]
[EventCountry "ESP"]
[SourceTitle "playchess.com"]
[Source "ChessBase"]
[SourceQuality "1"]
[TimeControl "5400+30"]

1. d4 {[%emt 0:00:28]} d5 {[%emt 0:00:05]} 2. Nf3 {[%emt 0:00:09]} Nf6 {[%emt 0:00:05]} 3. e3 {[%emt 0:00:06]} Bg4 {[%emt 0:00:16]} 4. Be2 {[%emt 0:02:22]} e6 {[%emt 0:00:38]} 5. h3 {[%emt 0:00:14]} Bh5 {[%emt 0:00:09]} 6. Nbd2 {[%emt 0:00:37]} c5 {[%emt 0:01:15]} 7. dxc5 {[%emt 0:02:23]} Bxc5 {[%emt 0:00:19]} 8. O-O {[%emt 0:00:25]} Nc6 {[%emt 0:01:10]} 9. c3 {[%emt 0:00:26]} O-O {[%emt 0:01:51]} 10. Nd4 {[%emt 0:39:58]} Bxe2 {[%emt 0:23:58]} 11. Qxe2 {[%emt 0:00:45]} e5 {[%emt 0:00:49]} 12. Nxc6 {[%emt 0:10:36]} bxc6 {[%emt 0:00:09]} 13. e4 {[%emt 0:02:12]} Re8 {[%emt 0:11:59]} 14. exd5 {[%emt 0:22:01]} cxd5 {[%emt 0:01:01]} 15. a3 {[%emt 0:04:51]} Bb6 {[%emt 0:07:26]} 16. c4 {[%emt 0:05:03]} d4 {[%emt 0:12:57]} 17. Ne4 {[%emt 0:00:53]} Nxe4 {[%emt 0:00:56]} 18. Qxe4 {[%emt 0:00:01]} Qc7 {[%emt 0:00:31]} 19. b3 {[%emt 0:00:53]} a5 {[%emt 0:06:31]} 20. a4 {[%emt 0:04:17]} Rad8 {[%emt 0:01:20]} 21. Rd1 {[%emt 0:01:06]} Bc5 {[%emt 0:05:22]} 22. Bd2 {[%emt 0:00:54]} Rb8 {[%emt 0:00:58]} 23. Rab1 {[%emt 0:00:44]} g6 {[%emt 0:02:37]} 24. Qe1 {[%emt 0:00:11]} Bb4 {[%emt 0:07:23]} 25. Bxb4 {[%emt 0:00:02]} axb4 {[%emt 0:01:02]} 26. Qd2 {[%emt 0:00:59]} Kg7 {[%emt 0:01:16]} 27. Re1 {[%emt 0:00:22]} Qc5 {[%emt 0:00:53]} 28. Rbd1 {[%emt 0:00:39]} Rbd8 {[%emt 0:01:41]} 29. Qa2 {[%emt 0:00:47]} Qa5 {[%emt 0:01:03]} 30. Qc2 {[%emt 0:00:08]} Rc8 {[%emt 0:00:17]} 31. Kf1 {[%emt 0:00:25]} Re6 {[%emt 0:02:18]} 32. Qd3 {[%emt 0:00:54]} Rd8 {[%emt 0:01:36]} 33. Qc2 {[%emt 0:00:26]} Rc6 {[%emt 0:01:11]} 34. Qe4 {[%emt 0:00:19]} Re6 {[%emt 0:00:31]} 35. Qc2 {[%emt 0:00:24]} Rc8 {[%emt 0:00:54]} 36. Qd3 {[%emt 0:00:16]} Qc5 {[%emt 0:00:34]} 37. Kg1 {[%emt 0:00:12]} Rd8 {[%emt 0:00:46]} 38. Qc2 {[%emt 0:00:16]} f5 {[%emt 0:00:31]} 39. Kf1 {[%emt 0:00:22]} Kf7 {[%emt 0:00:15]} 40. f3 {[%emt 0:00:35]} Rdd6 {[%emt 0:00:43]} 41. Qd3 {[%emt 0:01:26]} Kg7 {[%emt 0:01:30]} 42. f4 {[%emt 0:00:47]} e4 {[%emt 0:00:26]} 43. Qd2 {[%emt 0:00:19]} e3 {[%emt 0:01:46]} 44. Qd3 {[%emt 0:00:01]} Re4 {[%emt 0:00:31]} 45. g3 {[%emt 0:00:44]} Rde6 {[%emt 0:00:38]} 46. Ke2 {[%emt 0:00:16]} Qc6 {[%emt 0:00:48]} 47. Rf1 {[%emt 0:00:14]} h6 {[%emt 0:00:49]} 48. Rde1 {[%emt 0:00:30]} Qc5 {[%emt 0:00:22]} 49. Rf3 {[%emt 0:00:17]} Qc6 {[%emt 0:00:47]} 50. Ref1 {[%emt 0:00:12]} Re7 {[%emt 0:00:27]} 51. Ra1 {[%emt 0:01:29]} Ra7 {[%emt 0:00:33]} 52. Raf1 {[%emt 0:00:40]} Rae7 {[%emt 0:00:34]} 53. Rc1 {[%emt 0:00:41]} Qc5 {[%emt 0:00:14]} 54. Ra1 {[%emt 0:00:08]} Qa5 1/2-1/2

[Event "ESP-ch U1700 2024"]
[Site "Albacete"]
[Date "2024.08.31"]
[Round "7.3"]
[White "Cerdeno Gil, Izan"]
[Black "Caballero Sanchez, Francisco"]
[Result "0-1"]
[ECO "E06"]
[WhiteElo "1637"]
[BlackElo "1682"]
[Annotator "NA RC COMBH"]
[PlyCount "150"]
[EventDate "2024.08.27"]
[EventType "swiss"]
[EventCountry "ESP"]
[SourceTitle "playchess.com"]
[Source "ChessBase"]
[SourceQuality "1"]
[TimeControl "5400+30"]

1. d4 {[%emt 0:00:03]} Nf6 {[%emt 0:00:01]} 2. c4 {[%emt 0:00:13]} e6 {[%emt 0:00:01]} 3. Nf3 {[%emt 0:00:10]} d5 {[%emt 0:00:04]} 4. g3 {[%emt 0:00:13]} Be7 {[%emt 0:01:44]} 5. Bg2 {[%emt 0:00:10]} O-O {[%emt 0:00:39]} 6. O-O {[%emt 0:00:40]} b6 {[%emt 0:02:21]} 7. Qc2 {[%emt 0:01:30]} Bb7 {[%emt 0:01:33]} 8. Nbd2 {[%emt 0:05:18]} Na6 {[%emt 0:02:11]} 9. a3 {[%emt 0:04:47]} c5 {[%emt 0:00:34]} 10. dxc5 {[%emt 0:03:38]} Nxc5 {[%emt 0:00:10]} 11. b4 {[%emt 0:01:12]} Nce4 {[%emt 0:00:33]} 12. Nxe4 {[%emt 0:07:47]} Nxe4 {[%emt 0:00:23]} 13. Rd1 {[%emt 0:02:13]} Qc8 {[%emt 0:04:16]} 14. Nd2 {[%emt 0:02:35]} Bf6 {[%emt 0:04:16]} 15. Nxe4 {[%emt 0:03:50]} Bxa1 {[%emt 0:02:23]} 16. Nd6 {[%emt 0:00:24]} Qc7 {[%emt 0:02:39]} 17. Nxb7 {[%emt 0:03:04]} Bf6 {[%emt 0:07:31]} 18. Bf4 {[%emt 0:06:30]} Qxb7 {[%emt 0:02:14]} 19. cxd5 {[%emt 0:00:20]} Rac8 {[%emt 0:01:20]} 20. Qa2 {[%emt 0:00:26]} Rfd8 {[%emt 0:06:34]} 21. d6 {[%emt 0:02:04]} Qd7 {[%emt 0:00:55]} 22. g4 {[%emt 0:02:50]} g5 {[%emt 0:05:00]} 23. Bg3 {[%emt 0:00:44]} Bg7 {[%emt 0:00:26]} 24. a4 {[%emt 0:05:20]} Qe8 {[%emt 0:04:01]} 25. b5 {[%emt 0:04:07]} e5 {[%emt 0:00:27]} 26. Bc6 {[%emt 0:00:51]} Rxc6 {[%emt 0:01:39]} 27. bxc6 {[%emt 0:00:08]} Qxc6 {[%emt 0:00:13]} 28. Qa3 {[%emt 0:01:43]} f6 {[%emt 0:01:40]} 29. Qb3+ {[%emt 0:01:25]} Kh8 {[%emt 0:00:38]} 30. Qe6 {[%emt 0:01:23]} h6 {[%emt 0:03:56]} 31. Qe7 {[%emt 0:07:23]} Qd7 {[%emt 0:01:44]} 32. Rd5 {[%emt 0:02:22]} Kh7 {[%emt 0:02:55]} 33. f3 {[%emt 0:01:35]} Kg6 {[%emt 0:00:42]} 34. Bf2 {[%emt 0:01:00]} Bf8 {[%emt 0:00:27]} 35. Qxd7 {[%emt 0:01:05]} Rxd7 {[%emt 0:00:02]} 36. a5 {[%emt 0:00:20]} bxa5 {[%emt 0:02:16]} 37. Rxa5 {[%emt 0:00:37]} Rxd6 {[%emt 0:00:44]} 38. Bxa7 {[%emt 0:00:43]} Rd1+ {[%emt 0:00:38]} 39. Kf2 {[%emt 0:02:52]} Bb4 {[%emt 0:02:12]} 40. Ra6 {[%emt 0:00:22]} Rd7 {[%emt 0:00:38]} 41. Bb8 {[%emt 0:00:48]} Bc5+ {[%emt 0:01:25]} 42. e3 {[%emt 0:00:50]} Kg7 {[%emt 0:01:10]} 43. Ke2 {[%emt 0:01:57]} Rb7 {[%emt 0:00:53]} 44. Bd6 {[%emt 0:00:06]} Rb2+ {[%emt 0:00:30]} 45. Kd3 {[%emt 0:00:13]} Bxd6 {[%emt 0:00:37]} 46. Rxd6 {[%emt 0:00:12]} Rxh2 {[%emt 0:00:07]} 47. Ke4 {[%emt 0:00:06]} Kg6 {[%emt 0:01:19]} 48. f4 {[%emt 0:00:28]} exf4 {[%emt 0:00:26]} 49. exf4 {[%emt 0:00:11]} Re2+ {[%emt 0:01:55]} 50. Kf3 {[%emt 0:00:17]} Re7 {[%emt 0:00:29]} 51. f5+ {[%emt 0:01:27]} Kf7 {[%emt 0:00:37]} 52. Rb6 {[%emt 0:00:17]} Ra7 {[%emt 0:00:43]} 53. Rc6 {[%emt 0:00:22]} Ra3+ {[%emt 0:00:38]} 54. Kg2 {[%emt 0:00:15]} Re3 {[%emt 0:00:47]} 55. Kf2 {[%emt 0:00:29]} Rh3 {[%emt 0:00:37]} 56. Rc7+ {[%emt 0:00:28]} Ke8 {[%emt 0:00:35]} 57. Rg7 {[%emt 0:00:22]} h5 {[%emt 0:00:35]} 58. gxh5 {[%emt 0:00:27]} Rxh5 {[%emt 0:00:16]} 59. Rb7 {[%emt 0:00:31]} Rh4 {[%emt 0:00:42]} 60. Rb3 {[%emt 0:00:31]} Rf4+ {[%emt 0:01:41]} 61. Kg3 {[%emt 0:00:12]} Rxf5 {[%emt 0:00:27]} 62. Kg4 {[%emt 0:00:09]} Rf4+ {[%emt 0:00:48]} 63. Kh5 {[%emt 0:00:08]} g4 {[%emt 0:02:24]} 64. Rg3 {[%emt 0:01:49]} f5 {[%emt 0:01:08]} 65. Kg5 {[%emt 0:00:07]} Rf3 {[%emt 0:00:16]} 66. Rg2 {[%emt 0:00:18]} g3 {[%emt 0:00:44]} 67. Kh4 {[%emt 0:00:23]} f4 {[%emt 0:00:10]} 68. Kh3 {[%emt 0:00:14]} Ke7 {[%emt 0:00:47]} 69. Re2+ {[%emt 0:00:35]} Kf6 {[%emt 0:00:32]} 70. Kg2 {[%emt 0:01:01]} Ra3 {[%emt 0:00:46]} 71. Rc2 {[%emt 0:00:14]} Kg5 {[%emt 0:00:37]} 72. Kh3 {[%emt 0:00:32]} Re3 {[%emt 0:02:01]} 73. Rc5+ {[%emt 0:00:16]} Kf6 {[%emt 0:00:30]} 74. Kg2 {[%emt 0:01:57]} Re2+ {[%emt 0:00:19]} 75. Kf1 {[%emt 0:00:59]} g2+ {[%emt 0:00:42]} 0-1